{"text_format":"1","workbook":"xlsx","n_sheets":3,"sheets":["Tabelle1","Tabelle2","Tabelle3"],"not_rendered":{"charts":0,"images":0,"macros":0,"external_links":0,"defined_names":0,"comments":0,"pivot_tables":0},"unopened":[],"bounds":{"document_bytes":16777216,"sheet_cells":100000,"rows_first":2000,"rows_last":500,"rows_between":2000,"halvings":0,"cell_chars":16384,"cell_head_chars":4096},"cells_cut":0,"cells_raw":0,"read":"whole","date_system":"1900"}

{"sheet":"Tabelle1","index":0,"n_rows":45,"n_cols":4,"rows_kept":45,"cut":false,"hidden":false,"merged":[]}
["Sachkosten","Anzahl","Einzelkosten ","Summe \nin €"]
["Akteursbefragung Druck- und Portokosten",null,4,{"$f":"B2*C2","v":0}]
["Engagierte Druck- und Portokosten",null,3,{"$f":"B3*C3","v":0}]
["Partiziativer WS: Catering: Anzahl der Teilnehmenden",null,12,0]
[null,null,null,{"$f":"SUM(D2:D4)","v":0}]
[]
["Externe Dienstleistung","Anzahl","Einzelkosten/\nStundenlohn","Summe \nin €"]
["Interviews führen",null,80,{"$f":"B8*C8","v":0}]
["Interviews verschriften",null,80,{"$f":"B9*C9","v":0}]
["Partizipativer WS Moderation",2,750,{"$f":"B10*C10","v":1500}]
["Akteursbefragung",{"$f":"D20","v":24},null,{"$f":"B11*C11","v":0}]
["Interviewauswertung",{"$f":"D24","v":0},null,{"$f":"B12*C12","v":0}]
["Befragung freiwillig Engagierter",{"$f":"D30","v":4},null,{"$f":"B13*C13","v":0}]
[null,null,null,{"$f":"SUM(D8:D10)","v":1500}]
["Akteursbefragung","Anzahl","Einzelaufwand in Stunden","Summe \nin Stunden"]
["Vorbereitung Teilnehmerakquise",1,16,{"$f":"B16*C16","v":16}]
["Anpassung",1,8,{"$f":"B17*C17","v":8}]
["Datenaufnahme: Anzahl der Datensätze",null,1,{"$f":"B18*C18","v":0}]
["Auswertung: Anzahl der Fragen",null,1,0]
[null,null,null,{"$f":"SUM(D16:D19)","v":24}]
["Qualitative Interviews","Anzahl","Einzelaufwand in Stunden","Summe \nin Stunden"]
["Interviews führen: Anzahl der Interviewpartner",null,2,0]
["Interviews verschriften: Anzahl der Interviewpartner",null,2,0]
["Auswertung: Anzahl der Interviewpartner",null,8,0]
[null,null,null,{"$f":"SUM(D22:D24)","v":0}]
["Befragung freiwillig Engagierter","Anzahl","Einzelaufwand in Stunden","Summe \nin Stunden"]
["Anpassung des Fragebogens",1,4,4]
["Datenaufnahme: Anzahl der Datensätze",null,0.75,0]
["Auswertung: Anzahl der Fragen",null,1,0]
[null,null,null,{"$f":"SUM(D27:D29)","v":4}]
["Fokusgruppe","Anzahl","Einzelaufwand in Stunden","Summe \nin Stunden"]
["Fokusgruppe Vorbereitung",1,40,40]
["Fokusgruppe Durchführung",1,3,3]
["Auswertung",1,8,8]
[null,null,null,{"$f":"SUM(D32:D34)","v":51}]
["Partizipativer Workshop","Anzahl","Einzelaufwand in Stunden","Summe \nin Stunden"]
["Partizipativer Workshop Vorbereitung",1,40,40]
["Durchführung",2,8,16]
["Dokumentation/Auswertung",1,8,8]
[null,null,null,{"$f":"SUM(D37:D39)","v":64}]
[]
["Mit externer Dienstleistung",null,"Stunden",{"$f":"D20+D24+D30+D35+D37+D39","v":127}]
[null,null,null,{"$f":"D5+D14","v":1500}]
["Ohne externe Dienstleistung",null,"Stunden",{"$f":"D20+D25+D30+D35+D40","v":143}]
[null,null,null,{"$f":"D5","v":0}]

{"sheet":"Tabelle2","index":1,"n_rows":0,"n_cols":0,"rows_kept":0,"cut":false,"hidden":false,"merged":[]}

{"sheet":"Tabelle3","index":2,"n_rows":0,"n_cols":0,"rows_kept":0,"cut":false,"hidden":false,"merged":[]}